Cogmind - Beta 16.1 @@@ ROGUE MODE // 2026.04.21 @ 00:54:13 Player: certified.possum Result: Destroyed by S-10 Pest with Light Assault Rifle Performance ------------- Evolutions (1) 500 Regions Visited (2) 400 Robots Destroyed (18) 90 Value Destroyed (402) 402 Prototype IDs (4) 80 Alien Tech Used (0) 0 Bonus (0) 0 TOTAL SCORE: 1472 Bonus ------- None Cogmind --------- Core Integrity 0/400 Matter 149/300 Energy 49/100 System Corruption 0% Temperature Danger (479) Movement Walking (120) Location -9/Materials Parts ------- > --- POWER (1) -------- (None) > --- PROPULSION (4) --- Improved Aluminum Leg Improved Aluminum Leg > --- UTILITY (2) ------ Small Storage Unit Visual Processing Unit > --- WEAPON (2) ------- Particle Cannon Light Assault Rifle > --- INVENTORY (8) ---- Light Nuclear Core Medium Laser Particle Cannon Datajack Peak State ------------ > --- POWER ------------ Light Ion Engine > --- PROPULSION ------- Improved Aluminum Leg Improved Aluminum Leg Improved Aluminum Leg Improved Aluminum Leg > --- UTILITY ---------- Small Storage Unit Visual Processing Unit > --- WEAPON ----------- Particle Cannon Particle Cannon > --- INVENTORY -------- Light Nuclear Core Medium Laser Particle Cannon Particle Cannon Datajack [Rating: 16] Favorites ----------- Power Ion Engine Engine Ion Engine Propulsion Improved Aluminum Leg Leg Improved Aluminum Leg Utility Small Storage Unit Storage Small Storage Unit Processor Visual Processing Unit Weapon Particle Cannon Energy Gun EM Pulse Gun Energy Cannon Particle Cannon Ballistic Gun Light Assault Rifle Build | -11 -10 -9 ------- Run | Yrd Mat Mat Slots Evolved 2 | . . 2 Power . | . . . Propulsion 2 | . . 2 Utility . | . . . Weapon . | . . . Parts Attached 19 | 6 9 4 Power 2 | 1 1 . Engine 2 | 1 1 . Core . | . . . Reactor . | . . . Propulsion 6 | 2 2 2 Treads . | . . . Leg 6 | 2 2 2 Wheel . | . . . Hover . | . . . Flight . | . . . Utility 3 | 1 2 . Device . | . . . Storage 2 | 1 1 . Processor 1 | . 1 . Hackware . | . . . Protection . | . . . Artifact . | . . . Weapon 8 | 2 4 2 Energy Gun 3 | 2 1 . Energy Cannon 4 | . 3 1 Ballistic Gun 1 | . . 1 Ballistic Cannon . | . . . Launcher . | . . . Special Weapon . | . . . Impact Weapon . | . . . Slashing Weapon . | . . . Piercing Weapon . | . . . Special Melee Weapon . | . . . Unidentified Prototypes . | . . . Parts Lost 6 | . 1 5 Power 2 | . 1 1 Propulsion 2 | . . 2 Utility . | . . . Weapon 2 | . . 2 Highest Loss Streak 4 | . 1 4 To Critical Strikes . | . . . Average Backups 5 | 2 6 5 Power 1 | . 1 1 Propulsion 1 | . 1 . Utility . | . . . Weapon 2 | . 2 3 Tool/Special . | . . . Unused Backups 5 | . 2 3 Power 1 | . . 1 Propulsion . | . . . Utility . | . . . Weapon 3 | . 2 1 Tool/Special 1 | . . 1 Average Slot Usage (%) 90 | . 90 91 Engine 12 | . 12 9 Leg 29 | . 27 38 Storage 13 | . 14 11 Processor 7 | . 6 11 Energy Gun 9 | . 12 . Energy Cannon 16 | . 15 20 Peak Build Rating 16 | 6 13 16 Average Rating 10 | 3 10 14 On Entrance 6 | . 6 13 Avg Prop Armor Cover (%) . | . . . Naked Turns . | . . . Heaviest Build 49 | 14 49 16 Greatest Support 52 | 20 26 52 Greatest Overweight (x) 1 | . 1 . Average Overweight (x) . | . . . Largest Inventory Capacity 20 | 8 20 8 Average Capacity 8 | 6 8 8 Most Carried 8 | 5 8 6 Average Carried 5 | 2 6 4 Final Capacity 8 | 8 8 8 Final Carried 7 | 2 7 4 Class Distribution -------------------- 100% | Mutant Dominant Class ---------------- Mutant | -10/Materials Mutant | -9/Materials Resources | -11 -10 -9 ----------- Run | Yrd Mat Mat Matter Collected 250 | . 250 . Remotely . | . . . Salvage Created 506 | . 320 186 Parts 38 | . 28 10 Haulers Intercepted . | . . . Recyclers Shooed . | . . . Parts Field Recycled . | . . . Retrieved Matter . | . . . Parts Self-Destructed . | . . . Prevented . | . . . Parts Restored . | . . . Kills | -11 -10 -9 ------- Run | Yrd Mat Mat Combat Hostiles Destroyed 17 | . 11 6 Guns 6 | . 5 1 Cannons 11 | . 6 5 Classes Destroyed 4 | . 3 1 Watcher 1 | . 1 . Swarmer 9 | . 6 3 Grunt 7 | . 5 2 Sentry 1 | . . 1 Best Kill Streak 3 | . 3 3 Combat Bots Only 3 | . 3 3 Max Kills in Single Turn 2 | . 2 1 Gunslinging . | . . . Exploded . | . . . Melee . | . . . Uniques/NPCs Destroyed . | . . . Combat | -11 -10 -9 -------- Run | Yrd Mat Mat Hostile Shots Fired 152 | . 69 83 Missed 29 | . 16 13 Hits 123 | . 53 70 Projectile 123 | . 53 70 Critical Strikes 1 | . . 1 Damage Taken 1383 | . 536 847 Core 525 | . 123 402 Absorbed by Shields . | . . . Regen/Repaired (Parts) 93 | . 93 . Core Remaining (%) 75 | 100 50 . Volleys Fired 51 | . 30 21 Largest 2 | . 2 2 Hottest 136 | . 136 136 Shots Fired 93 | . 56 37 Gun 25 | . 22 3 Cannon 68 | . 34 34 Launcher . | . . . Special . | . . . Kinetic 3 | . . 3 Thermal 77 | . 43 34 Explosive . | . . . Electromagnetic 13 | . 13 . Robot Hit Streak 3 | . 3 3 Robot Miss Streak 8 | . 5 8 Penetration Max . | . . . Secondary Targets 1 | . 1 . Max Gunslinging Chain 1 | . 1 . Shots Hit Robots 43 | . 27 16 Core Hits 21 | . 15 6 Critical Kills . | . . . Critical Parts Destroyed . | . . . Critical Strikes 1 | . 1 . Burn 1 | . 1 . Melee Attacks . | . . . Impact . | . . . Slashing . | . . . Piercing . | . . . Sneak Attacks . | . . . Combat Hostiles . | . . . Follow-up Attacks . | . . . Damage Inflicted 851 | . 480 371 Guns 217 | . 194 23 Cannons 634 | . 286 348 Explosions . | . . . Melee . | . . . Ramming . | . . . Kinetic 23 | . . 23 Thermal 722 | . 374 348 Explosive . | . . . Electromagnetic 106 | . 106 . Impact . | . . . Slashing . | . . . Piercing . | . . . Highest Corruption 1 | . 1 . Average Corruption 1 | . 1 . Corruption Purged . | . . . Corruption Blocked . | . . . Effects 1 | . 1 . Energy Discharges 1 | . 1 . Overload Shots . | . . . Overflow Damage 1 | . . 1 Projectiles 1 | . . 1 Explosions . | . . . Melee . | . . . Knockbacks . | . . . Impact . | . . . Kinetic . | . . . Secondary . | . . . Self-Inflicted Damage . | . . . Shots . | . . . Rammed . | . . . Targets Rammed . | . . . Kicked . | . . . Crushed . | . . . Highest Temperature 561 | . 538 561 Average Temperature 227 | . 173 335 Received Heat Transfer 225 | . 102 123 Effects 22 | . 7 15 Shutdowns 3 | . 2 1 Energy Bleed 2 | . 2 . Interference 5 | . 2 3 Matter Decay 1 | . . 1 Damage (minor) 3 | . . 3 Damage (major) 4 | . . 4 Damage (core) 4 | . 1 3 Siege Activations . | . . . Martial Activations . | . . . Shielding Activations . | . . . Robots Disrupted . | . . . Combat Hostiles . | . . . Robots Corrupted . | . . . Combat Hostiles . | . . . Parts Fried . | . . . Impact Corruptions . | . . . Robots Melted . | . . . Combat Hostiles . | . . . Parts Melted . | . . . Heat Transferred 1480 | . 851 629 Parts Sabotaged . | . . . Parts Stolen . | . . . Parts Stripped . | . . . Power Chain Reactions . | . . . Alert | -11 -10 -9 ------- Run | Yrd Mat Mat Maximum Alert Level . | . . . Low Security (%) 100 | 100 100 100 Level 1 . | . . . Level 2 . | . . . Level 3 . | . . . Level 4 . | . . . Level 5 . | . . . High Security . | . . . Max Security . | . . . Peak Influence 82 | . 82 70 Initial . | . . . Average 25 | . 29 15 Influence Increases 463 | . 323 140 Destroy 0b10 Robot/C 340 | . 220 120 Destroy 0b10 Robot/NC 5 | . 5 . Destroy Leader 72 | . 52 20 Successful Hack 15 | . 15 . Destroy Structure 1 | . 1 . Lose Combat Pursuer 30 | . 30 . Influence Decreases 393 | . 323 70 Time Decay 343 | . 313 30 Lost Part 50 | . 10 40 Squads Dispatched 3 | . 2 1 Investigation 1 | . 1 . Extermination . | . . . Reinforcement 2 | . 1 1 Assault . | . . . Garrison . | . . . Intercept . | . . . Searches Triggered . | . . . Construction Impeded . | . . . Haulers Reinforced . | . . . Active Scanning Responses . | . . . Cargo Convoy Interrupts . | . . . Stealth | -11 -10 -9 --------- Run | Yrd Mat Mat Distress Signals 3 | . 2 1 Communications Jammed . | . . . Distress Signals . | . . . Times Spotted 29 | . 17 12 Peak Tracking Total 8 | . 5 8 Tactical Retreats 1 | . 1 . Traps | -11 -10 -9 ------- Run | Yrd Mat Mat Traps Triggered 1 | . 1 . Indirectly . | . . . Trap Hack Attempts . | . . . Triggered . | . . . Disarmed . | . . . Reprogrammed . | . . . Reused . | . . . Traps Extracted . | . . . Installed . | . . . Triggered . | . . . Machines | -11 -10 -9 ---------- Run | Yrd Mat Mat Machines Disabled . | . . . Max in Single Turn . | . . . Machines Repaired . | . . . Machines Dismantled . | . . . Machines Sabotaged . | . . . Overloaded Fab Kills . | . . . Hacking | -11 -10 -9 --------- Run | Yrd Mat Mat Machines Accessed 6 | . 6 . Terminals 5 | . 5 . Fabricators . | . . . Repair Stations 1 | . 1 . Recycling Units . | . . . Scanalyzers . | . . . Garrison Access . | . . . Total Hacks 15 | . 15 . Successful 10 | . 10 . Failed 5 | . 5 . Catastrophic . | . . . Database Lockouts . | . . . Manual . | . . . Terminals 11 | . 11 . Fabricators . | . . . Repair Stations 4 | . 4 . Recycling Units . | . . . Scanalyzers . | . . . Garrison Access . | . . . Terminal Hacks 7 | . 7 . Record 1 | . 1 . Prototype ID Bank 2 | . 2 . Alert Level 1 | . 1 . Locate Traps 1 | . 1 . Dispatch Records 1 | . 1 . Hauler Manifests 1 | . 1 . Fabricator Hacks . | . . . Repair Station Hacks 3 | . 3 . Scan Component 2 | . 2 . Repair 1 | . 1 . Recycling Unit Hacks . | . . . Scanalyzer . | . . . Garrison Access Hacks . | . . . Unauthorized Hacks . | . . . Terminals . | . . . Fabricators . | . . . Repair Stations . | . . . Recycling Units . | . . . Scanalyzers . | . . . Garrison Access . | . . . Data Cores Recovered . | . . . Used . | . . . Hacking Detections 6 | . 6 . Full Trace Events 2 | . 2 . Feedback Events . | . . . Feedback Blocked . | . . . Robot Schematics Acquired . | . . . Robots Built . | . . . Authchips . | . . . Time . | . . . Total Robot Build Rating . | . . . Part Schematics Acquired . | . . . Parts Built . | . . . Authchips . | . . . Time . | . . . Total Part Build Rating . | . . . Part Studies Acquired . | . . . Parts Repaired 1 | . 1 . Time 32 | . 32 . Parts Recycled . | . . . Recycled Matter . | . . . Retrieved Matter . | . . . Retrieved Components . | . . . Parts Scanalyzed . | . . . Part Schematics Acquired . | . . . Parts Damaged . | . . . Bothacking | -11 -10 -9 ------------ Run | Yrd Mat Mat Used RIF Installer . | . . . Robots Hacked . | . . . Non-combat . | . . . Combat . | . . . Robot Hacks Applied . | . . . Relay Couplers Released . | . . . Fabnet Peak Effective % . | . . . Robots Rewired . | . . . Allies Hacked . | . . . Hacks Repelled . | . . . Allies | -11 -10 -9 -------- Run | Yrd Mat Mat Total Allies . | . . . Largest Group . | . . . Highest-Rated Group . | . . . Highest-Rated Ally . | . . . Total Orders . | . . . Ally Attacks . | . . . Total Damage . | . . . Kills . | . . . Allies Corrupted . | . . . Allies Melted . | . . . Intel | -11 -10 -9 ------- Run | Yrd Mat Mat Active Infowar (turns) 503 | . 308 195 Optics 503 | . 308 195 Robot Analysis Total . | . . . Derelict Logs Recovered . | . . . Drone Launches . | . . . Drone Recoveries . | . . . Exploration | -11 -10 -9 ------------- Run | Yrd Mat Mat Turns Passed 1107 | 52 849 206 Spaces Moved 695 | 42 543 110 Core 20 | 20 . . Treads . | . . . Legs 675 | 22 543 110 Wheels . | . . . Hover . | . . . Flight . | . . . Fastest Speed 50 | 50 120 120 Average Speed 120 | 86 122 120 Slowest Speed 190 | 120 190 120 Overloaded Moves . | . . . Propulsion Burnouts . | . . . Robots Hopped . | . . . Potential Cave-ins . | . . . Cave-ins Triggered . | . . . Exploration Rate (%) 34 | 3 92 9 Regions Visited 2 Branch Regions . Pre-discovered Areas . | . . . Known Exits Taken . | . . . Unknown Exits Taken 2 | 1 1 . Scrap Searched . | . . . Spaces Dug . | . . . Terrain Destroyed . | . . . Melee . | . . . Projectile . | . . . AOE . | . . . Terrain Rammed . | . . . Walls Destroyed . | . . . Machines Disabled . | . . . Actions | -11 -10 -9 --------- Run | Yrd Mat Mat Total 877 | 56 672 149 Wait 82 | 3 66 13 Move 693 | 41 542 110 Hop . | . . . Pick Up 21 | 6 14 1 Fast Attach 4 | 2 2 . Attach 11 | 4 3 4 Detach . | . . . Swap 6 | . 6 . Drop 9 | . 9 . Fire 51 | . 30 21 Melee . | . . . Ram . | . . . Kick . | . . . Crush . | . . . Escape Stasis . | . . . Rewire . | . . . Trap . | . . . Miscellaneous . | . . . Route ------- -11/Scrapyard -10/Materials (discovered 3 exits: *Mat x2 / [*Min]) -9/Materials History --------- Turn | Location | Event 14 | -11/Scrapyard | Discovered new exit (range 15) 53 | -11/Scrapyard | Entered Materials 84 | -10/Materials | Discovered new exit (range 15) 305 | -10/Materials | Build established: Mutant 483 | -10/Materials | Discovered new exit (range 14) 592 | -10/Materials | Repaired Imp. Aluminum Leg 728 | -10/Materials | Discovered new exit (range 13) 902 | -10/Materials | Entered another Materials area 902 | -9/Materials | Evolved 2 slots: Propulsion x2 1096 | -9/Materials | Core integrity fell below 50% 1099 | -9/Materials | Core integrity fell below 20% 1108 | -9/Materials | Destroyed by S-10 Pest with Light Assault Rifle Last Messages --------------- Overheating: System interference. Particle Cannon temporarily disabled. Overheating: Particle Cannon damaged (-36). Overheating: Visual Processing Unit damaged (-6). Overheating: Particle Cannon damaged (-25). Overheating: Sml. Storage Unit damaged (-33). Overheating: Particle Cannon damaged (-23). S-10 Pest destroyed. Overheating: Core damaged (-68). K-01 Serf collects debris. Overheating: Core damaged (-60). Imp. Aluminum Leg destroyed. Overheating: Core damaged (-76). Particle Cannon destroyed. Acquired Lgt. Assault Rifle. K-01 Serf collects debris. S-10 Pest destroyed. K-01 Serf collects debris. G-34 Mercenary destroyed. Map ----- +----------------------------------------------------+ | ??????????????????????????????"??????????????????? | | ??????????????????????????????"??????????????????? | | ?????????????????????????????? ?????????????????? | | ???????????????????????????###+###???????????????? | | ???????????????????????????# #???????????????? | | ???????????????????????????# #???????????????? | | ???????????????????????????# T #???????????????? | | ???????????????????????????+ #???????????????? | | ???????????????????????##+## ????????????????? | | ???????????????????????# #????????????????? | | ???????????????????????# #?????###########? | | ???????????????????????# #?????# #? | | ???????????????????????# #?????# #? | | ???????????????????????# #?????#"" #? | | ???????????????????????# #?????#"" """"" #? | | ???????????????????????# #?????#"T """"" #? | | ???????????????????????# = +?????#"" """"" #? | | ???????????????????????##%### #?????#"" #? | | ????????????????????????#=#?# #???### #? | | ????????????????????????#%#?# #??? #######+####? | | ????????????????????????#=#?# +?? # #??? | | ?????????????????????####k#?# #?? # #??? | | ?????????????????????# *=[#?# #? # #??? | | ?????????????????????# =s=#?# #? # ### ##??? | | ?????????????????????# *%#?# # # #?# #???? | | ?????????????????????# @#?# # # #?# #???? | | ?????????????????????# #?# + # ###+##### | | ?????????????????????# #?# # # # | | ?????????????????????# ### ###### # ] | | ?????????????????????# ## ##### # | | ?????????????????????# ## " # | | ?????????????????????# ## "T + | | ?????????????????????# ## # """" | | ?????????????????????# ## ##### # """" | | ?????????????????????# ########???# # """" | | ?????????????????????######??????????############# | | ?????????????????????????????????????????????????? | | ?????????????????????????????????????????????????? | | ?????????????????????????????????????????????????? | | ?????????????????????????????????????????????????? | | | | | | | | | | | | | | | | | | | | | +----------------------------------------------------+ Best States ------------- Heat Dissipation 28 Energy Generation 10 Energy Capacity 250 Matter Stores 185 Matter Capacity 300 Sight Range 18 Terrain Scan Density 10 Evasion (%) 55 Item Schematics ----------------- None Robot Schematics ------------------ None Fabricated ------------ Nothing Repaired ---------- Imp. Aluminum Leg | 7% | -10/Materials Studied --------- None Alien Tech Used ----------------- None Achievements -------------- Spot Them First Well Done Challenges ------------ None Game ------ Seed WaveBladeCharge Manual? 0 Play Time 00:15:13 Cumulative 6.4 hours Start 2026.04.21 @ 00:41:39 End 2026.04.21 @ 00:54:13 Sessions 1 Manual Loads 0 Difficulty Rogue Special Mode None Game No. 24 Rogue 24 Adventurer 0 Explorer 0 Win Type - Total 0 Types 0/0/0/0/0/0/0/0/0/0 Lore% 2 Gallery% 10 Achievement% 9 Wizard Run 0 Options --------- Layout 1 ASCII 0 Keyboard 0 Movement Mouse Keybinds 0 Fullscreen 2 Font 32/Tamsyn Map View 50x35 Zoom Use 0% Tactical HUD 0 Map Filters NONE Filters NONE Steam 1 RUN: e72df65b-1b85-4f52-aede-b616fe339aea